fUSD/lending_fUSD_20250630
["ID","MTS","AMOUNT","RATE_DAILY","PERIOD"]
[368627481,1751251833537,-51395.20663784,0.00017808,2]
[368627484,1751251833558,-31075.9033109,0.00017808,2]
[368627486,1751251833569,-2813.38254034,0.00017808,2]
[368627489,1751251833580,-288.67,0.00017808,2]
[368627689,1751251839883,-14808.97973146,0.00017808,2]
[368627694,1751251839926,-44666.2503232,0.00017808,2]
[368628021,1751251843126,-712.91840761,0.00017808,2]
[368628022,1751251843138,-366.59231633,0.00017808,2]
[368628023,1751251843243,-775.44931369,0.00017808,2]
[368628024,1751251843258,-3142.09624411,0.00017808,2]
[368628026,1751251844206,-302.39,0.00017808,2]
[368628027,1751251844274,-43412.49537523,0.00017808,2]
[368628028,1751251844284,-1292.09,0.00017808,2]
[368628029,1751251844293,-903.59,0.00017808,2]
[368628030,1751251844302,-2593.58,0.00017808,2]
[368628031,1751251844311,-8491.88,0.00017808,2]
[368628032,1751251844320,-490.0,0.00017808,2]
[368628033,1751251844330,-490.0,0.00017808,2]
[368628034,1751251844339,-490.0,0.00017808,2]
[368628035,1751251844348,-490.0,0.00017808,2]
[368628036,1751251844358,-490.0,0.00017808,2]
[368628037,1751251844368,-2865.37,0.00017808,2]
[368628038,1751251844377,-490.0,0.00017808,2]
[368628039,1751251844386,-490.0,0.00017808,2]
[368628040,1751251844396,-1229.7,0.00017808,2]
[368628041,1751251844405,-490.0,0.00017808,2]
[368628042,1751251844414,-2403.06,0.00017808,2]
[368628043,1751251844424,-490.0,0.00017808,2]
[368628044,1751251844436,-490.0,0.00017808,2]
[368628045,1751251844445,-490.0,0.00017808,2]
[368628046,1751251844454,-490.0,0.00017808,2]
[368628047,1751251844463,-490.0,0.00017808,2]
[368628048,1751251844472,-3607.68,0.00017808,2]
[368628049,1751251844482,-490.0,0.00017808,2]
[368628050,1751251844491,-710.44,0.00017808,2]
[368628051,1751251844500,-3116.89,0.00017808,2]
[368628052,1751251844511,-490.0,0.00017808,2]
[368628053,1751251844520,-1351.45,0.00017808,2]
[368628054,1751251844530,-490.0,0.00017808,2]
[368628055,1751251844539,-2430.73,0.00017808,2]
[368628056,1751251844549,-770.92,0.00017808,2]
[368628057,1751251844559,-490.0,0.00017808,2]
[368628058,1751251844568,-4278.68,0.00017808,2]
[368628059,1751251844577,-903.92,0.00017808,2]
[368628060,1751251844586,-490.0,0.00017808,2]
[368628061,1751251844595,-1309.58,0.00017808,2]
[368628062,1751251844605,-326.28988247,0.00017808,2]
[368628063,1751251844614,-873.9,0.00017808,2]
[368628064,1751251844623,-490.0,0.00017808,2]
[368628065,1751251844632,-490.0,0.00017808,2]
[368628066,1751251844642,-490.0,0.00017808,2]
[368628067,1751251844652,-490.0,0.00017808,2]
[368628068,1751251844661,-2820.62,0.00017808,2]
[368628069,1751251844671,-490.0,0.00017808,2]
[368628070,1751251844681,-490.0,0.00017808,2]
[368628071,1751251844692,-765.87,0.00017808,2]
[368628072,1751251844702,-2624.38,0.00017808,2]
[368628073,1751251844712,-844.27,0.00017808,2]
[368628074,1751251844723,-490.0,0.00017808,2]
[368628075,1751251844732,-490.0,0.00017808,2]
[368628076,1751251844741,-2612.7770385,0.00017853,2]
[368628077,1751251844752,-250.0,0.00017895,2]
[368628078,1751251844761,-300.0,0.00017895,2]
[368628079,1751251844771,-1100.0,0.000179,6]
[368628080,1751251844780,-164.65374823,0.0001798,2]
[368628081,1751251844789,-1450.09602426,0.0001798,2]
[368628082,1751251844799,-461.57045696,0.00017981,2]
[368628083,1751251844808,-2612.7770385,0.00017998,2]
[368628084,1751251844818,-200.854556,0.00018,2]
[368628085,1751251844827,-250.0,0.00018006,2]
[368628086,1751251844836,-448.56,0.0001807,2]
[368628087,1751251844845,-448.56,0.0001807,2]
[368628088,1751251844854,-304.729827,0.00018072,2]
[368628089,1751251844863,-979.0,0.00018073,2]
[368628090,1751251844872,-506.21,0.0001808,2]
[368628091,1751251844882,-490.0,0.0001808,2]
[368628092,1751251844891,-762.8,0.0001808,2]
[368628093,1751251844900,-490.0,0.0001808,2]
[368628094,1751251844909,-490.0,0.0001808,2]
[368628095,1751251844919,-490.0,0.0001808,2]
[368628096,1751251844927,-490.0,0.0001808,2]
[368628097,1751251844936,-490.0,0.0001808,2]
[368628098,1751251844945,-490.0,0.0001808,2]
[368628099,1751251844955,-490.0,0.0001808,2]
[368628100,1751251844963,-499.14222957,0.0001808,2]
[368628101,1751251844973,-753.01,0.0001808,2]
[368628102,1751251844982,-490.0,0.0001808,2]
[368628103,1751251844991,-490.0,0.0001808,2]
[368628104,1751251845001,-1214.46,0.0001808,2]
[368628105,1751251845011,-806.81,0.0001808,2]
[368628106,1751251845021,-529.16,0.0001808,2]
[368628107,1751251845030,-610.70018223,0.0001808,2]
[368628108,1751251845040,-490.0,0.0001808,2]
[368628109,1751251845049,-770.62,0.0001808,2]
[368628110,1751251845058,-929.66,0.0001808,2]
[368628111,1751251845067,-490.0,0.0001808,2]
[368628112,1751251845077,-490.0,0.0001808,2]
[368628113,1751251845087,-1084.19,0.0001808,2]
[368628114,1751251845098,-490.0,0.0001808,2]
[368628115,1751251845107,-516.18,0.0001808,2]
[368628116,1751251845117,-490.0,0.0001808,2]
[368628117,1751251845127,-490.0,0.0001808,2]
[368628118,1751251845137,-490.0,0.0001808,2]
[368628119,1751251845146,-1413.27,0.0001808,2]
[368628120,1751251845155,-622.17,0.0001808,2]
[368628121,1751251845165,-290.4537962,0.0001808,2]
[368628122,1751251845175,-491.29527764,0.0001808,2]
[368628123,1751251845185,-540.08,0.0001808,2]
[368628124,1751251845194,-490.0,0.0001808,2]
[368628125,1751251845203,-490.0,0.0001808,2]
[368628126,1751251845211,-490.0,0.0001808,2]
[368628127,1751251845220,-490.0,0.0001808,2]
[368628128,1751251845229,-490.0,0.0001808,2]
[368628129,1751251845241,-953.4,0.0001808,2]
[368628130,1751251845250,-490.0,0.0001808,2]
[368628131,1751251845259,-1449.6,0.0001808,2]
[368628132,1751251845268,-490.0,0.0001808,2]
[368628133,1751251845277,-558.14,0.0001808,2]
[368628134,1751251845286,-742.28,0.0001808,2]
[368628135,1751251845295,-490.0,0.0001808,2]
[368628136,1751251845304,-665.87,0.0001808,2]
[368628137,1751251845314,-490.0,0.0001808,2]
[368628138,1751251845323,-490.0,0.0001808,2]
[368628139,1751251845332,-808.09,0.0001808,2]
[368628140,1751251845341,-490.0,0.0001808,2]
[368628141,1751251845350,-661.63,0.0001808,2]
[368628142,1751251845359,-1555.39,0.0001808,2]
[368628143,1751251845368,-1197.04,0.0001808,2]
[368628144,1751251845377,-490.0,0.0001808,2]
[368628145,1751251845387,-712.43,0.0001808,2]
[368628146,1751251845397,-490.0,0.0001808,2]
[368628147,1751251845406,-490.0,0.0001808,2]
[368628148,1751251845415,-1005.51,0.0001808,2]
[368628149,1751251845424,-603.87,0.0001808,2]
[368628150,1751251845435,-490.0,0.0001808,2]
[368628151,1751251845444,-490.0,0.0001808,2]
[368628152,1751251845453,-490.0,0.0001808,2]
[368628153,1751251845463,-490.0,0.0001808,2]
[368628154,1751251845472,-595.18,0.0001808,2]
[368628155,1751251845482,-1150.89,0.0001808,2]
[368628156,1751251845492,-769.02,0.0001808,2]
[368628157,1751251845501,-490.0,0.0001808,2]
[368628158,1751251845514,-490.0,0.0001808,2]
[368628159,1751251845524,-1182.38,0.0001808,2]
[368628160,1751251845534,-490.0,0.0001808,2]
[368628161,1751251845544,-490.0,0.0001808,2]
[368628162,1751251845553,-490.0,0.0001808,2]
[368628163,1751251845563,-1039.16,0.0001808,2]
[368628164,1751251845572,-668.98,0.0001808,2]
[368628165,1751251845582,-1133.4,0.0001808,2]
[368628166,1751251845591,-490.0,0.0001808,2]
[368628167,1751251845603,-490.0,0.0001808,2]
[368628168,1751251845612,-490.0,0.0001808,2]
[368628170,1751251845621,-684.77,0.0001808,2]
[368628172,1751251845630,-2704.6,0.0001808,2]
[368628174,1751251845639,-490.0,0.0001808,2]
[368628176,1751251845650,-490.0,0.0001808,2]
[368628177,1751251845659,-490.0,0.0001808,2]
[368628178,1751251845669,-1629.48,0.0001808,2]
[368628180,1751251845678,-490.0,0.0001808,2]
[368628182,1751251845687,-262.55609157,0.0001808,2]
[368628183,1751251845697,-490.0,0.0001808,2]
[368628184,1751251845706,-490.0,0.0001808,2]
[368628185,1751251845716,-490.0,0.0001808,2]
[368628186,1751251845725,-490.0,0.0001808,2]
[368628188,1751251845735,-2625.87,0.0001808,2]
[368628189,1751251845744,-536.5,0.0001808,2]
[368628190,1751251845753,-5845.11,0.0001808,2]
[368628191,1751251845763,-705.3,0.0001808,2]
[368628192,1751251845772,-490.0,0.0001808,2]
[368628193,1751251845781,-490.0,0.0001808,2]
[368628194,1751251845790,-490.0,0.0001808,2]
[368628195,1751251845799,-490.0,0.0001808,2]
[368628196,1751251845808,-490.0,0.0001808,2]
[368628197,1751251845818,-490.0,0.0001808,2]
[368628199,1751251845827,-490.0,0.0001808,2]
[368628200,1751251845838,-490.0,0.0001808,2]
[368628201,1751251845847,-490.0,0.0001808,2]
[368628202,1751251845856,-490.0,0.0001808,2]
[368628203,1751251845865,-1901.07,0.0001808,2]
[368628204,1751251845875,-1629.55,0.0001808,2]
[368628205,1751251845884,-549.85,0.0001808,2]
[368628206,1751251845893,-2484.8,0.0001808,2]
[368628207,1751251845903,-490.0,0.0001808,2]
[368628208,1751251845912,-490.0,0.0001808,2]
[368628209,1751251845921,-490.0,0.0001808,2]
[368628210,1751251845931,-193.68810469,0.0001808,2]
[368628211,1751251845940,-660.81,0.0001808,2]
[368628212,1751251845950,-2495.51,0.0001808,2]
[368628213,1751251845960,-490.0,0.0001808,2]
[368628214,1751251845970,-3179.03,0.0001808,2]
[368628215,1751251845979,-490.0,0.0001808,2]
[368628216,1751251845989,-490.0,0.0001808,2]
[368628217,1751251845999,-490.0,0.0001808,2]
[368628218,1751251846008,-490.0,0.0001808,2]
[368628219,1751251846017,-490.0,0.0001808,2]
[368628220,1751251846027,-490.0,0.0001808,2]
[368628221,1751251846036,-492.45,0.0001808,2]
[368628222,1751251846045,-1130.48,0.0001808,2]
[368628223,1751251846054,-1006.54,0.0001808,2]
[368628224,1751251846064,-2319.29,0.0001808,2]
[368628225,1751251846073,-2192.34,0.0001808,2]
[368628226,1751251846082,-490.0,0.0001808,2]
[368628227,1751251846092,-852.79,0.0001808,2]
[368628228,1751251846101,-657.55,0.0001808,2]
[368628229,1751251846111,-490.0,0.0001808,2]
[368628230,1751251846119,-490.0,0.0001808,2]
[368628231,1751251846129,-912.83,0.0001808,2]
[368628232,1751251846139,-490.0,0.0001808,2]
[368628233,1751251846149,-490.0,0.0001808,2]
[368628234,1751251846158,-490.0,0.0001808,2]
[368628235,1751251846167,-490.0,0.0001808,2]
[368628236,1751251846176,-1158.24,0.0001808,2]
[368628237,1751251846185,-490.0,0.0001808,2]
[368628238,1751251846195,-10854.25,0.0001808,2]
[368628239,1751251846204,-614.78,0.0001808,2]
[368628240,1751251846213,-869.07,0.0001808,2]
[368628241,1751251846222,-490.0,0.0001808,2]
[368628242,1751251846230,-490.0,0.0001808,2]
[368628243,1751251846239,-490.0,0.0001808,2]
[368628245,1751251846248,-2819.07,0.0001808,2]
[368628247,1751251846257,-1345.4,0.0001808,2]
[368628249,1751251846266,-522.86,0.0001808,2]
[368628250,1751251846274,-2580.5,0.0001808,2]
[368628251,1751251846283,-490.0,0.0001808,2]
[368628252,1751251846292,-490.0,0.0001808,2]
[368628253,1751251846301,-6040.76,0.0001808,2]
[368628254,1751251846309,-1131.28,0.0001808,2]
[368628255,1751251846318,-490.0,0.0001808,2]
[368628256,1751251846327,-490.0,0.0001808,2]
[368628257,1751251846336,-490.0,0.0001808,2]
[368628258,1751251846345,-490.0,0.0001808,2]
[368628259,1751251846355,-152.668884,0.0001808,2]
[368628260,1751251846364,-155.241363,0.0001808,2]
[368628261,1751251846374,-490.0,0.0001808,2]
[368628262,1751251846383,-174.24777553,0.00018081,2]
[368628263,1751251846392,-1494.4,0.00018081,2]
[368628264,1751251846402,-2746.7,0.00018081,2]
[368628265,1751251846410,-490.0,0.00018081,2]
[368628266,1751251846419,-490.0,0.00018081,2]
[368628267,1751251846429,-1033.76,0.00018081,2]
[368628268,1751251846441,-490.0,0.00018081,2]
[368628269,1751251846450,-1220.36,0.00018081,2]
[368628270,1751251846459,-491.71605432,0.00018081,2]
[368628271,1751251846467,-490.0,0.00018081,2]
[368628272,1751251846477,-1878.62,0.00018081,2]
[368628273,1751251846486,-490.0,0.00018081,2]
[368628274,1751251846495,-1702.73,0.00018081,2]
[368628275,1751251846504,-1396.61,0.00018081,2]
[368628276,1751251846514,-490.0,0.00018081,2]
[368628277,1751251846523,-886.27,0.00018081,2]
[368628278,1751251846532,-496.36534297,0.00018081,2]
[368628279,1751251846540,-490.0,0.00018081,2]
[368628280,1751251846549,-490.0,0.00018081,2]
[368628281,1751251846558,-1326.6,0.00018081,2]
[368628282,1751251846567,-2158.06,0.00018081,2]
[368628283,1751251846576,-868.85,0.00018081,2]
[368628284,1751251846585,-490.0,0.00018081,2]
[368628285,1751251846594,-490.0,0.00018081,2]
[368628286,1751251846602,-2914.25,0.00018081,2]
[368628287,1751251846611,-490.0,0.00018081,2]
[368628288,1751251846620,-490.0,0.00018081,2]
[368628289,1751251846630,-490.0,0.00018081,2]
[368628290,1751251846639,-492.97564222,0.00018081,2]
[368628291,1751251846648,-1624.74,0.00018081,2]
[368628292,1751251846657,-1650.52,0.00018081,2]
[368628293,1751251846667,-490.0,0.00018081,2]
[368628294,1751251846675,-1274.53,0.00018081,2]
[368628295,1751251846685,-490.0,0.00018081,2]
[368628296,1751251846694,-1204.89,0.00018081,2]
[368628297,1751251846703,-490.0,0.00018081,2]
[368628298,1751251846712,-944.67,0.00018081,2]
[368628299,1751251846722,-1242.11,0.00018081,2]
[368628300,1751251846731,-490.0,0.00018081,2]
[368628301,1751251846740,-1160.88,0.00018081,2]
[368628302,1751251846749,-490.0,0.00018081,2]
[368628303,1751251846758,-2826.78,0.00018081,2]
[368628304,1751251846767,-491.98137617,0.00018081,2]
[368628305,1751251846779,-3589.26,0.00018081,2]
[368628306,1751251846788,-1018.36,0.00018081,2]
[368628307,1751251846797,-490.0,0.00018081,2]
[368628308,1751251846806,-490.0,0.00018081,2]
[368628309,1751251846815,-1059.15,0.00018081,2]
[368628310,1751251846825,-490.0,0.00018081,2]
[368628311,1751251846834,-716.48,0.00018081,2]
[368628312,1751251846843,-1605.32,0.00018081,2]
[368628313,1751251846852,-490.0,0.00018081,2]
[368628314,1751251846861,-542.84709859,0.00018081,2]
[368628315,1751251846870,-1981.18,0.00018081,2]
[368628316,1751251846879,-544.61089271,0.00018081,2]
[368628317,1751251846890,-1139.1,0.00018081,2]
[368628318,1751251846899,-490.0,0.00018081,2]
[368628319,1751251846908,-490.0,0.00018081,2]
[368628320,1751251846917,-1237.49,0.00018081,2]
[368628321,1751251846926,-1810.15,0.00018081,2]
[368628322,1751251846935,-490.0,0.00018081,2]
[368628323,1751251846945,-490.0,0.00018081,2]
[368628324,1751251846954,-1654.41,0.00018081,2]
[368628325,1751251846963,-490.0,0.00018081,2]
[368628326,1751251846973,-2460.95,0.00018081,2]
[368628327,1751251846982,-490.0,0.00018081,2]
[368628328,1751251846992,-490.0,0.00018081,2]
[368628329,1751251847001,-490.0,0.00018081,2]
[368628330,1751251847011,-490.0,0.00018081,2]
[368628331,1751251847020,-667.28,0.00018081,2]
[368628332,1751251847029,-490.0,0.00018081,2]
[368628333,1751251847038,-1149.23,0.00018081,2]
[368628334,1751251847048,-490.0,0.00018081,2]
[368628335,1751251847057,-151.78078,0.00018081,2]
[368628336,1751251847066,-490.0,0.00018081,2]
[368628337,1751251847075,-618.1,0.00018081,2]
[368628338,1751251847084,-490.0,0.00018081,2]
[368628339,1751251847094,-490.0,0.00018081,2]
[368628340,1751251847103,-1704.96,0.00018081,2]
[368628341,1751251847113,-490.0,0.00018081,2]
[368628342,1751251847122,-490.0,0.00018081,2]
[368628343,1751251847131,-2522.64,0.00018081,2]
[368628344,1751251847140,-490.0,0.00018081,2]
[368628345,1751251847149,-490.0,0.00018081,2]
[368628346,1751251847158,-490.0,0.00018081,2]
[368628347,1751251847167,-2606.44,0.00018081,2]
[368628348,1751251847176,-490.0,0.00018081,2]
[368628349,1751251847186,-1308.89,0.00018081,2]
[368628350,1751251847195,-490.0,0.00018081,2]
[368628351,1751251847205,-490.0,0.00018081,2]
[368628352,1751251847215,-711.96,0.00018081,2]
[368628353,1751251847225,-490.0,0.00018081,2]
[368628354,1751251847235,-490.0,0.00018081,2]
[368628355,1751251847244,-490.0,0.00018081,2]
[368628356,1751251847253,-567.49454644,0.00018081,2]
[368628357,1751251847262,-2813.59,0.00018081,2]
[368628358,1751251847271,-1130.82,0.00018081,2]
[368628359,1751251847281,-490.0,0.00018081,2]
[368628360,1751251847290,-2054.27,0.00018081,2]
[368628361,1751251847299,-490.0,0.00018081,2]
[368628362,1751251847309,-1626.93,0.00018081,2]
[368628363,1751251847318,-490.0,0.00018081,2]
[368628364,1751251847328,-692.55,0.00018081,2]
[368628365,1751251847338,-490.0,0.00018081,2]
[368628366,1751251847347,-490.0,0.00018081,2]
[368628367,1751251847357,-2662.69,0.00018081,2]
[368628368,1751251847366,-490.0,0.00018081,2]
[368628369,1751251847376,-1102.83,0.00018081,2]
[368628370,1751251847385,-5692.2,0.00018081,2]
[368628371,1751251847395,-490.0,0.00018081,2]
[368628372,1751251847404,-490.0,0.00018081,2]
[368628373,1751251847414,-490.0,0.00018081,2]
[368628374,1751251847423,-490.0,0.00018081,2]
[368628375,1751251847433,-604.51304801,0.00018081,2]
[368628376,1751251847442,-490.0,0.00018081,2]
[368628377,1751251847451,-490.0,0.00018081,2]
[368628378,1751251847460,-490.0,0.00018081,2]
[368628379,1751251847470,-1111.8,0.00018081,2]
[368628380,1751251847480,-2604.06,0.00018081,2]
[368628381,1751251847490,-490.0,0.00018081,2]
[368628382,1751251847499,-2633.68,0.00018081,2]
[368628383,1751251847509,-155.644805,0.00018081,2]
[368628384,1751251847518,-5083.48314,0.00018081,2]
[368628385,1751251847527,-490.0,0.00018081,2]
[368628386,1751251847536,-1919.9,0.00018081,2]
[368628387,1751251847546,-490.0,0.00018081,2]
[368628388,1751251847555,-490.0,0.00018081,2]
[368628389,1751251847564,-490.0,0.00018081,2]
[368628390,1751251847574,-2227.63,0.00018081,2]
[368628391,1751251847587,-490.7051414,0.00018081,2]
[368628392,1751251847596,-490.0,0.00018081,2]
[368628393,1751251847605,-1415.06,0.00018081,2]
[368628394,1751251847614,-151.0,0.00018081,2]
[368628395,1751251847623,-151.0,0.00018081,2]
[368628396,1751251847632,-151.0,0.00018081,2]
[368628397,1751251847642,-151.0,0.00018081,2]
[368628398,1751251847651,-5999.62,0.00018081,2]
[368628399,1751251847661,-490.0,0.00018081,2]
[368628400,1751251847670,-782.66,0.00018081,2]
[368628401,1751251847680,-490.0,0.00018081,2]
[368628402,1751251847689,-5254.83619,0.00018081,2]
[368628403,1751251847698,-490.0,0.00018081,2]
[368628404,1751251847707,-3142.01,0.00018081,2]
[368628405,1751251847716,-151.0,0.00018081,2]
[368628406,1751251847725,-490.0,0.00018081,2]
[368628407,1751251847735,-490.0,0.00018081,2]
[368628408,1751251847744,-2539.09,0.00018081,2]
[368628409,1751251847755,-3325.28,0.00018081,2]
[368628410,1751251847764,-3198.41,0.00018081,2]
[368628411,1751251847773,-5625.65,0.00018081,2]
[368628412,1751251847783,-4723.880595,0.00018081,2]
[368628413,1751251847794,-491.16922826,0.00018081,2]
[368628414,1751251847803,-156.544188,0.00018081,2]
[368628415,1751251847812,-490.0,0.00018081,2]
[368628416,1751251847822,-583.84,0.00018081,2]
[368628417,1751251847831,-2041.83,0.00018081,2]
[368628418,1751251847840,-670.965871,0.00018081,2]
[368628419,1751251847850,-154.582315,0.00018081,2]
[368628420,1751251847859,-3148.4,0.00018081,2]
[368628421,1751251847869,-3326.13,0.00018081,2]
[368628422,1751251847878,-490.0,0.00018081,2]
[368628423,1751251847888,-3110.07,0.00018081,2]
[368628424,1751251847897,-490.0,0.00018081,2]
[368628425,1751251847908,-1532.12,0.00018081,2]
[368628426,1751251847917,-2562.21,0.00018081,2]
[368628427,1751251847927,-490.0,0.00018081,2]
[368628428,1751251848121,-6000.18,0.00018081,2]
[368628429,1751251848158,-490.0,0.00018081,2]
[368628430,1751251848168,-490.0,0.00018081,2]
[368628431,1751251848178,-490.0,0.00018081,2]
[368628432,1751251848187,-455.02216476,0.00018081,2]
[368628433,1751251848196,-2042.31,0.00018081,2]
[368628434,1751251848206,-490.0,0.00018081,2]
[368628435,1751251848215,-1252.39,0.00018081,2]
[368628436,1751251848225,-151.0,0.00018081,2]
[368628437,1751251848235,-6909.95,0.00018081,2]
[368628438,1751251848244,-490.0,0.00018081,2]
[368628439,1751251848254,-490.0,0.00018081,2]
[368628440,1751251848263,-151.0,0.00018081,2]
[368628441,1751251848273,-5737.06,0.00018081,2]
[368628442,1751251848282,-1586.1,0.00018081,2]
[368628443,1751251848291,-971.44,0.00018081,2]
[368628444,1751251848301,-490.0,0.00018081,2]
[368628445,1751251848310,-490.0,0.00018081,2]
[368628446,1751251848319,-8918.43,0.00018081,2]
[368628447,1751251848329,-543.20822155,0.00018081,2]
[368628448,1751251848339,-4406.9,0.00018081,2]
[368628449,1751251848348,-2788.63,0.00018081,2]
[368628450,1751251848358,-151.0,0.00018081,2]
[368628451,1751251848367,-14092.07,0.00018081,2]
[368628452,1751251848376,-151.0,0.00018081,2]
[368628453,1751251848385,-294.337367,0.00018081,2]
[368628454,1751251848395,-151.0,0.00018081,2]
[368628455,1751251848404,-490.0,0.00018081,2]
[368628456,1751251848414,-151.0,0.00018081,2]
[368628457,1751251848423,-151.0,0.00018081,2]
[368628458,1751251848434,-725.24,0.00018081,2]
[368628459,1751251848443,-2655.79,0.00018081,2]
[368628460,1751251848452,-490.0,0.00018081,2]
[368628461,1751251848462,-490.0,0.00018081,2]
[368628462,1751251848471,-250.59511361,0.00018081,2]
[368628463,1751251848480,-217.623484,0.00018081,2]
[368628464,1751251848491,-500.0,0.00018081,2]
[368628465,1751251848500,-500.0,0.00018081,2]
[368628466,1751251848511,-500.0,0.00018081,2]
[368628467,1751251848520,-500.0,0.00018081,2]
[368628468,1751251848530,-500.0,0.00018081,2]
[368628469,1751251848539,-500.0,0.00018081,2]
[368628470,1751251848549,-500.0,0.00018081,2]
[368628471,1751251848558,-398.59317096,0.00018081,2]
[368628472,1751251848568,-500.0,0.00018081,2]
[368628473,1751251848577,-500.0,0.00018081,2]
[368628474,1751251848586,-375.63576201,0.00018081,2]
[368628475,1751251848597,-500.0,0.00018081,2]
[368628476,1751251848608,-500.0,0.00018081,2]
[368628477,1751251848618,-1462.67,0.00018081,2]
[368628478,1751251848628,-151.0,0.00018081,2]
[368628479,1751251848637,-490.0,0.00018081,2]
[368628480,1751251848647,-151.0,0.00018081,2]
[368628481,1751251848657,-151.0,0.00018081,2]
[368628482,1751251848666,-2768.03,0.00018081,2]
[368628483,1751251848677,-500.0,0.00018081,2]
[368628484,1751251848687,-490.0,0.00018081,2]
[368628485,1751251848696,-2153.44,0.00018081,2]
[368628486,1751251848706,-490.0,0.00018081,2]
[368628487,1751251848717,-1156.94,0.00018081,2]
[368628488,1751251848726,-3648.15,0.00018081,2]
[368628489,1751251848735,-3141.2,0.00018081,2]
[368628490,1751251848745,-490.0,0.00018081,2]
[368628491,1751251848754,-490.0,0.00018081,2]
[368628492,1751251848763,-1286.38,0.00018081,2]
[368628493,1751251848773,-1149.64,0.00018081,2]
[368628494,1751251848782,-490.0,0.00018081,2]
[368628495,1751251848792,-1547.58,0.00018081,2]
[368628496,1751251848802,-490.0,0.00018081,2]
[368628497,1751251848811,-2561.19,0.00018081,2]
[368628498,1751251848821,-2869.81,0.00018081,2]
[368628499,1751251848831,-1642.54,0.00018081,2]
[368628500,1751251848841,-490.0,0.00018081,2]
[368628501,1751251848850,-490.0,0.00018081,2]
[368628502,1751251848860,-3711.38,0.00018081,2]
[368628503,1751251848870,-490.0,0.00018081,2]
[368628504,1751251848880,-1823.46,0.00018081,2]
[368628505,1751251848889,-490.0,0.00018081,2]
[368628506,1751251848899,-171.17613039,0.00018081,2]
[368628507,1751251848908,-521.09517524,0.00018081,2]
[368628508,1751251848917,-1592.93,0.00018081,2]
[368628509,1751251848927,-2930.53,0.00018081,2]
[368628510,1751251848936,-2287.65,0.00018081,2]
[368628511,1751251848946,-3034.06,0.00018081,2]
[368628512,1751251848956,-575.77,0.00018081,2]
[368628513,1751251848966,-490.0,0.00018081,2]
[368628514,1751251848976,-1780.89,0.00018081,2]
[368628515,1751251848985,-490.0,0.00018081,2]
[368628516,1751251848995,-3135.19,0.00018081,2]
[368628517,1751251849005,-1841.53,0.00018081,2]
[368628518,1751251849014,-4796.81,0.00018081,2]
[368628519,1751251849024,-490.0,0.00018081,2]
[368628520,1751251849034,-1312.25,0.00018081,2]
[368628521,1751251849043,-490.0,0.00018081,2]
[368628522,1751251849053,-490.0,0.00018081,2]
[368628523,1751251849063,-300.0,0.00018081,2]
[368628524,1751251849073,-1522.28,0.00018081,2]
[368628525,1751251849082,-16959.56,0.00018081,2]
[368628526,1751251849092,-2999.94,0.00018081,2]